bitfinex-derivatives/quotes_SOLF0:USTF0_20250919
["timestamp","ask_amount","ask_price","bid_price","bid_amount"]
[1758287489426,7.0,241.35,241.29,102.36]
[1758287489620,7.0,241.35,241.3,2.13]
[1758287489814,3.7259,241.44,241.33,2.13]
[1758287490021,7.0,241.38,241.34,102.44]
[1758287490221,7.0,241.38,241.35,102.44]
[1758287490420,7.0,241.38,241.36,102.46820978]
[1758287490712,1.43710164,241.42,241.36,102.46820978]
[1758287491117,3.7257,241.46,241.36,106.19520978]
[1758287491326,7.0,241.42,241.36,106.19520978]
[1758287491528,7.0,241.42,241.36,106.167]
[1758287491925,7.0,241.42,241.37,0.02748779]
[1758287492221,1.43710164,241.43,241.37,0.02748779]
[1758287492925,1.43710164,241.43,241.38,3.7268]
[1758287493128,7.0,241.42,241.38,3.7268]
[1758287493626,8.43710164,241.46,241.4,3.7265]
[1758287493929,7.0,241.45,241.41,104.53]
[1758287494621,7.0,241.45,241.41,104.558032]
[1758287495724,1.43710164,241.48,241.42,2.13]
[1758287495929,7.0,241.49,241.42,5.8562]
[1758287496540,7.0,241.49,241.43,0.02748427]
[1758287499531,7.0,241.49,241.44,102.32]
[1758287499732,1.43710164,241.5,241.44,102.32]
[1758287500141,7.0,241.49,241.44,102.32]
[1758287500343,1.43710164,241.5,241.44,102.32]
[1758287500636,7.0,241.49,241.44,102.32]
[1758287501440,1.43710164,241.5,241.45,102.3]
[1758287501640,7.0,241.49,241.45,104.43]
[1758287502038,1.43710164,241.5,241.45,104.43]
[1758287502235,7.0,241.49,241.45,104.43]
[1758287502640,7.0,241.49,241.45,2.13]
[1758287502836,7.0,241.49,241.46,102.26]
[1758287503032,7.0,241.5,241.46,102.26]
[1758287503240,1.43710164,241.51,241.46,102.2]
[1758287503439,7.0,241.5,241.46,104.33]
[1758287503642,1.43710164,241.51,241.46,104.33]
[1758287504146,7.0,241.5,241.46,104.33]
[1758287504642,7.0,241.5,241.47,2.13]
[1758287504942,1.43710164,241.51,241.47,2.13]
[1758287505142,7.0,241.5,241.47,2.13]
[1758287505738,1.43710164,241.51,241.46,102.2]
[1758287505934,7.0,241.5,241.46,102.2]
[1758287506133,1.43710164,241.51,241.46,102.2]
[1758287506343,7.0,241.5,241.46,104.33]
[1758287507745,7.0,241.5,241.47,2.13]
[1758287508744,7.0,241.51,241.46,102.2]
[1758287508948,1.43710164,241.52,241.47,102.1]
[1758287509148,7.0,241.51,241.47,102.1]
[1758287509345,1.43710164,241.52,241.47,102.1]
[1758287509548,7.0,241.51,241.47,102.1]
[1758287510144,1.43710164,241.52,241.47,102.1]
[1758287510345,7.0,241.51,241.47,102.1]
[1758287510535,7.0,241.51,241.48,2.13]
[1758287510939,1.43710164,241.52,241.47,102.1]
[1758287511140,7.0,241.54,241.47,102.1]
[1758287511448,8.43710164,241.57,241.48,2.13]
[1758287511843,8.43710164,241.57,241.5,0.02780797]
[1758287512849,8.43710164,241.57,241.5,3.75270797]
[1758287515053,1.43710164,241.56,241.51,2.13]
[1758287515255,1.43710164,241.56,241.5,5.88270797]
[1758287515856,7.0,241.57,241.5,5.88270797]
[1758287516055,8.43710164,241.57,241.5,5.88270797]
[1758287517656,1.43710164,241.54,241.5,0.02780797]
[1758287518249,6.98,241.54,241.5,0.02780797]
[1758287518752,1.43710164,241.55,241.5,0.02780797]
[1758287518950,3.7244,241.54,241.5,0.02780797]
[1758287519657,6.98,241.53,241.5,0.02780797]
[1758287519853,3.7244,241.54,241.5,0.02780797]
[1758287520154,6.98,241.53,241.5,0.02780797]
[1758287520550,3.7244,241.54,241.5,0.02780797]
[1758287521051,6.98,241.53,241.5,0.02780797]
[1758287521252,3.7244,241.54,241.5,0.02780797]
[1758287521453,6.98,241.53,241.5,0.02780797]
[1758287521856,3.7244,241.54,241.5,0.02780797]
[1758287522353,6.98,241.53,241.5,0.02780797]
[1758287522661,3.7244,241.54,241.5,0.02780797]
[1758287523256,6.98,241.53,241.5,0.02780797]
[1758287523562,6.98,241.53,241.5,2.14780797]
[1758287523856,3.7241,241.56,241.5,2.14780797]
[1758287524058,3.7241,241.56,241.5,0.02780797]
[1758287524258,6.98,241.55,241.5,0.02780797]
[1758287524450,10.7041,241.56,241.5,0.02780797]
[1758287525559,6.98,241.56,241.5,0.02780797]
[1758287526457,6.98,241.57,241.51,3.7248]
[1758287531367,6.98,241.57,241.51,5.8448]
[1758287532454,3.7235,241.6,241.53,3.7245]
[1758287532662,60.14453996,241.67,241.51,24.8]
[1758287532862,60.14453996,241.67,241.5,0.02780797]
[1758287532863,2.23963996,241.63,241.5,2.12]
[1758287533057,6.98,241.61,241.5,35.72]
[1758287533258,6.98,241.59,241.51,3.7247]
[1758287533561,6.98,241.59,241.53,0.02703083]
[1758287534065,2.9088494,241.58,241.53,0.02703083]
[1758287534266,6.98,241.62,241.53,0.02703083]
[1758287534460,6.98,241.6,241.53,0.02703083]
[1758287534658,2.90860556,241.59,241.53,0.02703083]
[1758287534866,6.98,241.57,241.53,2.14703083]
[1758287535060,6.98,241.58,241.53,2.14703083]
[1758287535262,6.98,241.62,241.53,2.14703083]
[1758287535557,6.98,241.6,241.53,2.14703083]
[1758287535860,6.63266165,241.61,241.53,2.14703083]
[1758287535861,2.90936165,241.59,241.53,0.02703083]
[1758287536059,6.98,241.57,241.53,2.14703083]
[1758287536265,6.98,241.59,241.53,2.14703083]
[1758287536566,6.98,241.57,241.53,2.14703083]
[1758287536768,6.98,241.57,241.54,2.12]
[1758287536957,6.98,241.57,241.55,2.12]
[1758287537768,6.98,241.59,241.56,2.12]
[1758287537965,6.98,241.62,241.56,2.12]
[1758287538166,6.98,241.6,241.56,2.12]
[1758287538367,6.98,241.65,241.53,2.12]
[1758287538562,2.90943433,241.64,241.57,2.14659625]
[1758287538768,6.98,241.65,241.57,2.14659625]
[1758287539072,2.90910959,241.64,241.57,5.87029625]
[1758287539261,6.98,241.65,241.57,2.14659625]
[1758287540158,10.7022,241.68,241.57,2.14659625]
[1758287540363,6.98,241.68,241.61,3.7232]
[1758287541064,6.98,241.68,241.59,3.7236]
[1758287541462,6.98,241.68,241.62,0.0270516]
[1758287541965,2.90492379,241.67,241.62,0.0270516]
[1758287542162,6.98,241.66,241.62,0.0270516]
[1758287543671,3.7226,241.65,241.62,0.0270516]
[1758287544273,6.98,241.64,241.62,0.0270516]
[1758287545968,3.7226,241.65,241.62,0.0270516]
[1758287546676,6.98,241.64,241.62,0.0270516]
[1758287547178,3.7226,241.65,241.62,0.0270516]
[1758287547478,6.98,241.64,241.62,0.0270516]
[1758287547779,3.7226,241.65,241.62,0.0270516]
[1758287548077,6.98,241.64,241.62,0.0270516]
[1758287548271,3.7226,241.65,241.62,0.0270516]
[1758287548777,6.77,241.64,241.62,0.0270516]
[1758287549178,3.7226,241.65,241.62,0.0270516]
[1758287549577,6.77,241.68,241.62,0.0270516]
[1758287549880,6.77,241.66,241.62,0.0270516]
[1758287550982,6.77,241.63,241.62,0.0270516]
[1758287568087,3.7229,241.64,241.62,0.0270516]
[1758287568293,3.7229,241.64,241.62,2.1370516]
[1758287568993,10.4929,241.64,241.62,2.1370516]
[1758287569593,10.4929,241.64,241.62,0.0270516]
[1758287569891,6.77,241.63,241.62,0.0270516]
[1758287576207,9.68078623,241.63,241.62,0.0270516]
[1758287583114,9.43078623,241.63,241.62,0.0270516]
[1758287586415,2.91078623,241.63,241.62,0.0270516]
[1758287586715,9.43078623,241.63,241.62,0.0270516]
[1758287587113,2.91078623,241.63,241.62,0.0270516]
[1758287587413,9.43078623,241.63,241.62,0.0270516]
[1758287593414,9.43078623,241.63,241.53,3.7245]
[1758287593415,3.7237,241.58,241.53,1.43229806]
[1758287593615,6.52,241.57,241.53,3.57229806]
[1758287593823,6.52,241.57,241.54,2.14]
[1758287597815,3.724,241.56,241.49,2.14]
[1758287598017,6.52,241.57,241.53,1.43229806]
[1758287598221,0.03039849,241.58,241.53,1.43229806]
[1758287598421,6.52,241.56,241.53,1.43229806]
[1758287598623,6.52,241.54,241.53,1.43229806]
[1758287600122,6.52,241.56,241.53,1.43229806]
[1758287600328,6.52,241.56,241.53,3.57229806]
[1758287600925,6.52,241.56,241.53,2.14]
[1758287602425,0.03039849,241.58,241.52,1.43229806]
[1758287602634,0.03039849,241.58,241.55,3.57229806]
[1758287603927,6.55039849,241.58,241.55,3.57229806]
[1758287604220,6.52,241.57,241.55,1.43229806]
[1758287605125,6.52,241.57,241.49,2.14]
[1758287605325,6.52,241.57,241.51,1.43229806]
[1758287605932,3.7241,241.56,241.51,1.43229806]
[1758287606133,6.52,241.55,241.51,3.57229806]
[1758287606329,3.7241,241.56,241.49,1.43229806]
[1758287606537,6.52,241.55,241.49,1.43229806]
[1758287608744,6.52,241.55,241.49,5.15729806]
[1758287611641,6.52,241.55,241.49,1.43229806]
[1758287615750,6.52,241.55,241.49,5.15729806]
[1758287616751,6.52,241.55,241.49,106.37729806]
[1758287617452,6.69,241.57,241.5,3.7249]
[1758287617751,6.69,241.57,241.5,5.8649]
[1758287618047,6.69,241.57,241.52,1.43229806]
[1758287618248,6.72039849,241.58,241.52,5.15679806]
[1758287620554,0.03039849,241.58,241.56,2.14]
[1758287621552,6.69,241.57,241.52,3.57229806]
[1758287621851,6.69,241.57,241.54,3.7242]
[1758287622051,6.69,241.57,241.54,5.8642]
[1758287622649,0.03039849,241.58,241.54,5.8642]
[1758287622958,6.69,241.57,241.53,101.16]
[1758287623250,0.03039849,241.58,241.53,101.16]
[1758287623449,6.69,241.57,241.53,103.3]
[1758287623752,6.69,241.57,241.53,107.0244]
[1758287624254,6.69,241.57,241.53,104.8844]
[1758287624558,6.69,241.57,241.54,2.14]
[1758287626258,6.69,241.57,241.54,5.8642]
[1758287628459,0.03039849,241.58,241.54,5.8642]
[1758287628854,6.69,241.57,241.54,5.8642]
[1758287629060,0.03039849,241.58,241.54,5.8642]
[1758287629261,6.69,241.57,241.54,3.7242]
[1758287629461,0.03039849,241.58,241.54,3.7242]
[1758287629662,6.69,241.57,241.54,3.7242]
[1758287629957,0.03039849,241.58,241.54,3.7242]
[1758287630159,6.69,241.57,241.54,3.7242]
[1758287631063,6.69,241.57,241.53,103.26]
[1758287631761,0.03039849,241.58,241.53,103.26]
[1758287631963,6.69,241.57,241.53,103.26]
[1758287632359,0.03039849,241.58,241.53,101.12]
[1758287632560,0.03039849,241.58,241.54,101.12]
[1758287632961,0.03039849,241.58,241.55,2.14]
[1758287633162,0.03039849,241.58,241.55,3.7242]
[1758287633358,6.72039849,241.58,241.55,5.8642]
[1758287633765,6.72039849,241.58,241.55,3.7242]
[1758287634063,6.72039849,241.58,241.56,2.14]
[1758287635162,6.72039849,241.58,241.56,5.8639]
[1758287635762,0.03039849,241.58,241.56,5.8639]
[1758287642675,0.03039849,241.58,241.56,3.7239]
[1758287642969,0.03039849,241.58,241.57,2.14]
[1758287651677,0.03039849,241.58,241.57,103.24]
[1758287658081,0.03039849,241.58,241.57,2.14]
[1758287658381,0.03039849,241.58,241.57,103.22]
[1758287660382,0.03039849,241.58,241.57,2.14]
[1758287660682,0.03039849,241.58,241.57,103.22]
[1758287664782,0.03039849,241.58,241.57,2.14]
[1758287664983,0.03039849,241.58,241.57,103.22]
[1758287665587,0.03039849,241.58,241.57,2.14]
[1758287665788,0.03039849,241.58,241.57,103.22]
[1758287672992,0.03039849,241.58,241.56,3.7239]
[1758287673192,7.32,241.57,241.47,2.13]
[1758287673496,2.26884177,241.58,241.47,101.06]
[1758287673497,2.23844328,241.53,241.47,101.06]
[1758287673793,2.93107384,241.52,241.41,12.63193114]
[1758287673991,2.23844328,241.49,241.42,101.06]
[1758287674185,2.93107384,241.48,241.42,101.06]
[1758287674495,6.9,241.48,241.42,101.06]
[1758287674689,0.02755168,241.49,241.42,101.06]
[1758287674896,6.9,241.48,241.42,101.06]
[1758287675393,6.9,241.48,241.42,103.19]
[1758287676001,6.9,241.48,241.42,106.9162]
[1758287683095,6.9,241.48,241.42,2.13]
[1758287683500,6.9,241.48,241.41,39.04]
[1758287685299,0.02755168,241.49,241.41,39.04]
[1758287685503,6.9,241.48,241.41,39.04]
[1758287685695,3.75265168,241.49,241.41,39.04]
[1758287685898,6.9,241.48,241.41,39.04]
[1758287687807,6.9,241.48,241.42,3.7262]
[1758287688105,6.9,241.48,241.42,5.8562]
[1758287697814,10.6253,241.48,241.42,2.13]
[1758287700224,6.58,241.48,241.37,2.14]
[1758287701919,10.3054,241.48,241.41,2.14]
[1758287702124,6.58,241.48,241.41,2.14]
[1758287702611,0.03049324,241.47,241.41,2.14]
[1758287703918,6.58,241.46,241.43,2.14]
[1758287705319,6.58,241.46,241.34,99.8020997]
[1758287705320,6.58,241.46,241.35,2.14]
[1758287705521,2.23844328,241.43,241.31,2.14]
[1758287705824,6.58,241.42,241.31,2.14]
[1758287706019,0.02767819,241.39,241.31,2.14]
[1758287706421,0.02767819,241.39,241.32,3.7277]
[1758287706624,0.02767819,241.39,241.33,2.14]
[1758287708923,6.58,241.38,241.28,2.14]
[1758287709530,6.58,241.36,241.28,5.8683]
[1758287710026,6.58,241.36,241.29,2.14]
[1758287711228,6.58,241.36,241.32,2.14]
[1758287711524,6.58,241.36,241.33,2.14]
[1758287712227,0.02700759,241.37,241.33,2.14]
[1758287712422,6.58,241.36,241.3,3.575464]
[1758287712722,6.58,241.36,241.3,2.14]
[1758287713324,8.015464,241.36,241.3,2.14]
[1758287713927,8.015464,241.36,241.26,2.14]
[1758287714129,8.015464,241.36,241.28,2.14]
[1758287716032,11.742764,241.36,241.25,3.575464]
[1758287716227,8.015464,241.36,241.25,2.14]
[1758287716433,6.58,241.32,241.25,2.14]
[1758287717129,0.02995915,241.31,241.25,2.14]
[1758287718031,0.02995915,241.31,241.26,1.435464]
[1758287718228,6.60995915,241.31,241.27,2.14]
[1758287718431,6.58,241.3,241.27,2.14]
[1758287720128,6.58,241.3,241.23,2.14]
[1758287723839,6.58,241.3,241.23,5.869]
[1758287724440,6.58,241.3,241.23,2.14]
[1758287725240,10.3082,241.3,241.23,2.14]
[1758287725742,6.58,241.3,241.2,7.304964]
[1758287725942,6.58,241.3,241.23,1.435464]
[1758287726241,6.58,241.3,241.24,2.14]
[1758287727934,6.58,241.3,241.2,5.164964]
[1758287728132,10.3082,241.3,241.2,7.304964]
[1758287728341,6.58,241.3,241.2,7.304964]
[1758287729437,6.58,241.3,241.21,3.7293]
[1758287729642,6.58,241.3,241.2,3.575464]
[1758287730645,10.3082,241.3,241.2,3.575464]
[1758287730943,6.58,241.3,241.2,3.575464]
[1758287731439,3.7285,241.27,241.2,2.14]
[1758287731843,57.9792,241.36,241.2,3.575464]
[1758287731844,6.73,241.29,241.2,3.575464]
[1758287732145,0.02779896,241.26,241.21,2.14]
[1758287732344,0.02779896,241.26,241.24,2.14]
[1758287733842,0.02779896,241.26,241.23,5.164464]
[1758287734044,0.02779896,241.26,241.24,2.14]
[1758287734645,0.02779896,241.26,241.23,5.164464]
[1758287734847,0.02779896,241.26,241.24,2.14]
[1758287735145,0.02779896,241.26,241.23,5.164464]
[1758287735340,0.02779896,241.26,241.24,2.14]
[1758287735545,0.02779896,241.26,241.23,5.164464]
[1758287736139,0.02779896,241.26,241.25,5.8688]
[1758287741344,6.73,241.36,241.31,2.14]
[1758287741543,6.73,241.36,241.32,2.14]
[1758287742649,59.3221442,241.38,241.3,101.16]
[1758287742952,1.435464,241.36,241.27,101.16]
[1758287743253,6.73,241.35,241.32,0.02853418]
[1758287743454,10.4576,241.33,241.32,0.02853418]
[1758287745957,11.893064,241.33,241.32,0.02853418]
[1758287746256,66.0521442,241.38,241.32,0.02853418]
[1758287751855,6.73,241.36,241.32,0.02853418]
[1758287752056,1.435464,241.34,241.32,0.02853418]
[1758287752360,6.73,241.33,241.32,0.02853418]
[1758287757070,9.68763141,241.33,241.32,0.02853418]
[1758287758371,9.68863452,241.33,241.32,0.02853418]
[1758287762271,10.10863452,241.33,241.2,2.15]
[1758287762471,7.11,241.26,241.2,2.15]
[1758287763069,7.11,241.26,241.17,2.18]
[1758287763576,0.02764256,241.24,241.17,2.18]
[1758287763777,0.02764256,241.24,241.18,3.7298]
[1758287765475,0.02764256,241.24,241.17,2.18]
[1758287765476,8.57310656,241.24,241.17,2.18]
[1758287766374,12.30220656,241.24,241.17,2.18]
[1758287766573,7.11,241.23,241.15,316.8103]
[1758287767378,7.11,241.23,241.16,3.7301]
[1758287771383,3.7293,241.22,241.15,2.18]
[1758287771575,0.02764256,241.24,241.11,2.18]
[1758287771576,7.11,241.19,241.11,2.18]
[1758287772375,7.11,241.16,241.11,2.18]
[1758287772681,7.13837842,241.17,241.11,2.18]
[1758287772987,7.11,241.16,241.07,93.24]
[1758287773188,7.11,241.16,241.08,3.7313]
[1758287773385,7.11,241.16,241.08,2.18]
[1758287774282,7.11,241.16,241.09,3.7313]
[1758287776289,7.11,241.16,241.08,2.18]
[1758287776690,0.02837842,241.17,241.1,4.42726448]
[1758287776890,0.02837842,241.17,241.11,2.18]
[1758287777793,0.02837842,241.17,241.15,3.7303]
[1758287777988,0.02837842,241.17,241.16,2.18]
[1758287782793,0.02837842,241.17,241.15,3.7303]
[1758287782999,0.02837842,241.17,241.16,2.18]
[1758287786504,7.13837842,241.17,241.15,3.7303]
[1758287787002,7.11,241.16,241.13,2.18]
[1758287787207,0.02837842,241.17,241.11,101.18]
[1758287787406,7.11,241.16,241.1,3.7311]
[1758287787609,7.11,241.16,241.1,104.9111]
[1758287787900,0.02837842,241.17,241.02,2.18]
[1758287788106,7.11,241.15,241.06,2.18]
[1758287788899,0.03035094,241.13,241.06,2.18]
[1758287789807,0.03035094,241.13,241.07,3.7315]
[1758287790909,6.61035094,241.13,241.07,3.7315]
[1758287794305,6.61035094,241.13,241.08,3.7313]
[1758287794609,6.61035094,241.13,241.04,101.18]
[1758287795911,6.58,241.12,241.09,3.7311]
[1758287796512,6.58,241.12,241.07,3.7316]
[1758287796812,6.58,241.12,241.08,2.17]
[1758287797409,0.03035094,241.13,241.08,2.17]
[1758287797814,6.58,241.12,241.08,2.17]
[1758287798211,6.58,241.12,241.09,2.17]
[1758287798608,0.03035094,241.13,241.09,2.17]
[1758287799008,6.61035094,241.13,241.09,2.17]
[1758287799208,6.61035094,241.13,241.05,2.17]
[1758287799410,0.03035094,241.13,241.06,58.0502]
[1758287799713,0.03035094,241.13,241.07,2.17]
[1758287800809,0.03035094,241.13,241.11,3.7309]
[1758287801115,0.03035094,241.13,241.12,2.17]
[1758287810523,0.03035094,241.13,241.11,3.7309]
[1758287810718,0.03035094,241.13,241.12,101.18]
[1758287810919,0.03035094,241.13,241.12,103.35]
[1758287818229,6.98,241.25,241.17,58.0226]
[1758287818430,6.98,241.25,241.18,103.28]
[1758287819626,6.98,241.25,241.19,0.03013552]
[1758287819829,6.98,241.25,241.23,3.729]
[1758287820024,2.24726448,241.32,241.23,104.889]
[1758287820225,6.98,241.3,241.23,101.16]
[1758287820830,6.98,241.3,241.24,0.02635185]
[1758287821031,6.98,241.35,241.27,3.7284]
[1758287821329,6.98,241.33,241.27,3.7284]
[1758287821735,3.7273,241.36,241.28,0.02670935]
[1758287822033,6.98,241.34,241.28,0.02670935]
[1758287822530,2.24726448,241.33,241.28,0.02670935]
[1758287822733,6.98,241.32,241.28,0.02670935]
[1758287823730,6.98,241.3,241.18,2.12]
[1758287823935,5.19867048,241.29,241.13,2.15]
[1758287824130,6.98,241.27,241.13,2.15]
[1758287824434,2.951406,241.28,241.14,101.14]
[1758287824435,6.98,241.28,241.14,101.14]
[1758287824738,6.98,241.26,241.19,3.7296]
[1758287825233,6.98,241.22,241.19,3.7296]
[1758287825732,0.02624923,241.23,241.19,101.14]
[1758287826236,0.02624923,241.23,241.2,2.15]
[1758287826535,0.02624923,241.23,241.22,5.8793]
[1758287828641,0.02624923,241.23,241.22,107.0193]
[1758287832945,0.02624923,241.23,241.22,5.8793]
[1758287833234,0.02624923,241.23,241.22,106.9993]
[1758287839245,7.00624923,241.23,241.22,3.7293]
[1758287839444,7.00624923,241.23,241.2,3.7296]
[1758287839639,0.02624923,241.23,241.21,101.12]
[1758287839839,0.02624923,241.23,241.22,101.12]
[1758287841446,0.02624923,241.23,241.22,103.27]
[1758287845847,0.02624923,241.23,241.21,3.7293]
[1758287846146,7.00624923,241.23,241.22,101.12]
[1758287846341,0.02624923,241.23,241.22,101.12]
[1758287846842,0.02624923,241.23,241.22,103.27]
[1758287849448,0.02624923,241.23,241.22,101.12]
[1758287850250,0.02624923,241.23,241.21,3.7293]
[1758287850446,0.02624923,241.23,241.22,101.12]
[1758287853250,0.02624923,241.23,241.18,2.16]
[1758287853251,6.66,241.22,241.18,2.16]
[1758287853453,8.09672435,241.2,241.14,23.0]
[1758287853762,1.43672435,241.17,241.14,2.16]
[1758287854056,8.09672435,241.17,241.14,2.16]
[1758287854258,1.43672435,241.17,241.14,101.14]
[1758287854557,6.66,241.16,241.14,101.14]
[1758287855154,1.43672435,241.17,241.14,101.14]
[1758287855359,0.02645246,241.18,241.14,101.14]
[1758287855561,0.02645246,241.18,241.15,2.16]
[1758287855754,0.02645246,241.18,241.14,101.14]
[1758287856058,0.02645246,241.18,241.15,2.16]
[1758287856760,0.02645246,241.18,241.14,101.14]
[1758287856952,0.02645246,241.18,241.17,3.7301]
[1758287858965,0.02645246,241.18,241.17,5.8901]
[1758287866670,6.66,241.28,241.23,2.13]
[1758287866868,1.43672435,241.28,241.21,82.46]
[1758287867059,6.66,241.27,241.21,82.46]
[1758287868372,6.66,241.27,241.22,0.02659961]
[1758287868565,1.43672435,241.25,241.22,0.02659961]
[1758287868761,6.66,241.24,241.22,0.02659961]
[1758287868965,1.43672435,241.25,241.22,0.02659961]
[1758287869569,6.66,241.24,241.22,0.02659961]
[1758287870264,1.43672435,241.25,241.22,0.02659961]
[1758287870469,6.66,241.24,241.22,0.02659961]
[1758287871466,1.43672435,241.25,241.22,0.02659961]
[1758287872266,6.66,241.24,241.22,0.02659961]
[1758287873366,1.43672435,241.25,241.22,0.02659961]
[1758287874066,6.66,241.24,241.22,0.02659961]
[1758287874269,1.43672435,241.25,241.22,0.02659961]
[1758287874671,6.66,241.24,241.22,0.02659961]
[1758287875073,1.43672435,241.25,241.22,0.02659961]
[1758287875467,1.43672435,241.28,241.22,0.02659961]
[1758287875673,6.66,241.28,241.22,0.02659961]
[1758287875872,6.66,241.33,241.23,2.13]
[1758287876174,2.97806064,241.32,241.23,2.13]
[1758287876377,6.66,241.33,241.23,2.13]
[1758287876572,2.97806419,241.32,241.25,0.02757246]
[1758287876766,6.66,241.33,241.25,3.75637246]
[1758287876971,2.97806419,241.32,241.25,3.75637246]
[1758287877178,6.66,241.33,241.25,3.75637246]
[1758287877473,2.97806821,241.32,241.25,3.75637246]
[1758287877674,6.66,241.33,241.25,3.75637246]
[1758287877875,2.97806821,241.32,241.25,3.75637246]
[1758287878175,6.71,241.32,241.25,3.75637246]
[1758287879578,5.16422435,241.34,241.27,3.7285]
[1758287879778,9.75798003,241.33,241.27,3.7285]
[1758287879977,2.97798003,241.32,241.27,3.7285]
[1758287880178,6.78,241.33,241.27,3.7285]
[1758287880379,2.9779562,241.32,241.27,3.7285]
[1758287880578,6.78,241.33,241.27,3.7285]
[1758287880779,6.78,241.31,241.27,3.7285]
[1758287880979,6.78,241.33,241.27,3.7285]
[1758287881778,6.78,241.36,241.26,2.13]
[1758287881983,2.97757903,241.35,241.26,2.13]
[1758287882283,8.21672435,241.36,241.26,2.13]
[1758287882579,2.97678082,241.35,241.26,2.13]
[1758287882781,8.21672435,241.36,241.3,3.7279]
[1758287882975,6.78,241.34,241.3,3.7279]
[1758287883171,6.78,241.35,241.3,3.7279]
[1758287883377,8.21672435,241.36,241.3,3.7279]
[1758287883575,6.78,241.34,241.3,5.8579]
[1758287883776,6.78,241.34,241.31,0.02617249]
[1758287884880,1.43672435,241.36,241.31,0.02617249]
[1758287885079,6.78,241.34,241.31,0.02617249]
[1758287885281,6.78,241.35,241.31,0.02617249]
[1758287886081,1.43672435,241.36,241.31,0.02617249]
[1758287886276,6.78,241.35,241.31,0.02617249]
[1758287886480,1.43672435,241.36,241.31,0.02617249]
[1758287886680,3.7265,241.4,241.31,0.02617249]
[1758287886681,1.43672435,241.39,241.31,0.02617249]
[1758287886881,6.78,241.37,241.31,0.02617249]
[1758287887081,2.97473724,241.36,241.31,0.02617249]
[1758287887384,6.78,241.38,241.31,0.02617249]
[1758287887682,2.9742617,241.37,241.31,0.02617249]
[1758287887881,6.78,241.35,241.31,0.02617249]
[1758287888075,6.78,241.38,241.31,0.02617249]
[1758287888381,2.97409513,241.37,241.31,0.02617249]
[1758287888583,6.78,241.35,241.31,0.02617249]
[1758287888782,1.43672435,241.33,241.31,0.02617249]
[1758287888977,6.78,241.32,241.18,1.43672435]
[1758287889175,1.43672435,241.28,241.18,1.43672435]
[1758287889381,6.78,241.27,241.18,1.43672435]
[1758287889675,1.43672435,241.25,241.17,2.15]
[1758287889879,6.78,241.24,241.17,2.15]
[1758287890485,0.02637748,241.23,241.17,2.15]
[1758287890877,0.02637748,241.23,241.18,3.7298]
[1758287891184,6.78,241.22,241.18,3.7298]
[1758287891975,0.02637748,241.23,241.18,3.7298]
[1758287892386,6.78,241.22,241.18,3.7298]
[1758287893086,0.02637748,241.23,241.18,3.7298]
[1758287893286,6.78,241.22,241.18,3.7298]
[1758287893487,0.02637748,241.23,241.18,3.7298]
[1758287895085,6.78,241.21,241.15,3.7303]
[1758287897991,6.78,241.21,241.12,5.8807]
[1758287898195,6.78,241.21,241.12,3.7307]
[1758287898687,9.02656465,241.21,241.09,5.8812]
[1758287898882,2.96570593,241.2,241.09,3.7312]
[1758287899087,9.02656465,241.21,241.09,3.7312]